[Event "Titled Tuesday Blitz December 06 Late 2022"]
[White "Simonovic, Miroslav"]
[Black "Przybylski, Wojciech"]
[WhiteFideId "919152"]
[BlackFideId "1117599"]
[WhiteElo "2057"]
[BlackElo "2217"]
[Result "1/2-1/2"]
[Round "09"]
[TimeControl "180+1"]
[Date "2022.12.07"]
[WhiteClock "0:00:17"]
[BlackClock "0:00:17"]

1. d4 {[%clk 0:03:00]}  Nf6 {[%clk 0:02:59]} 2. Bg5 {[%clk 0:03:01]}  e6 {[%clk 0:02:59]} 3. e4 {[%clk 0:03:01]}  h6 {[%clk 0:02:59]} 4. Bxf6 {[%clk 0:03:01]}  Qxf6 {[%clk 0:02:59]} 5. e5 {[%clk 0:03:02]}  Qe7 {[%clk 0:02:58]} 6. c3 {[%clk 0:03:00]}  f5 {[%clk 0:02:58]} 7. Qh5+ {[%clk 0:02:57]}  Qf7 {[%clk 0:02:58]} 8. Qxf7+ {[%clk 0:02:58]}  Kxf7 {[%clk 0:02:59]} 9. f4 {[%clk 0:02:57]}  b6 {[%clk 0:02:51]} 10. Be2 {[%clk 0:02:56]}  Bb7 {[%clk 0:02:50]} 11. Bf3 {[%clk 0:02:57]}  Bxf3 {[%clk 0:02:47]} 12. Nxf3 {[%clk 0:02:58]}  d5 {[%clk 0:02:46]} 13. exd6 {[%clk 0:02:56]}  cxd6 {[%clk 0:02:45]} 14. Kf2 {[%clk 0:02:49]}  Nd7 {[%clk 0:02:43]} 15. Re1 {[%clk 0:02:48]}  Nf6 {[%clk 0:02:42]} 16. Nbd2 {[%clk 0:02:46]}  Rg8 {[%clk 0:02:42]} 17. Re2 {[%clk 0:02:36]}  g5 {[%clk 0:02:38]} 18. Rae1 {[%clk 0:02:26]}  Re8 {[%clk 0:02:36]} 19. fxg5 {[%clk 0:02:15]}  hxg5 {[%clk 0:02:32]} 20. g3 {[%clk 0:02:07]}  Bh6 {[%clk 0:02:29]} 21. Kg2 {[%clk 0:02:04]}  g4 {[%clk 0:02:25]} 22. Nh4 {[%clk 0:02:01]}  Nd5 {[%clk 0:02:23]} 23. Nc4 {[%clk 0:02:00]}  Bf8 {[%clk 0:02:19]} 24. Nxf5 {[%clk 0:01:56]}  Kf6 {[%clk 0:01:58]} 25. Nfxd6 {[%clk 0:01:51]}  Bxd6 {[%clk 0:01:57]} 26. Nxd6 {[%clk 0:01:52]}  Re7 {[%clk 0:01:56]} 27. a3 {[%clk 0:01:39]}  Rh8 {[%clk 0:01:52]} 28. c4 {[%clk 0:01:35]}  Nc7 {[%clk 0:01:50]} 29. Rf2+ {[%clk 0:01:31]}  Kg6 {[%clk 0:01:50]} 30. Ne4 {[%clk 0:01:25]}  Ne8 {[%clk 0:01:46]} 31. Rf4 {[%clk 0:01:23]}  Kh5 {[%clk 0:01:35]} 32. Nf6+ {[%clk 0:01:21]}  Kg5 {[%clk 0:01:32]} 33. Re5+ {[%clk 0:01:16]}  Kg6 {[%clk 0:01:29]} 34. Nxe8 {[%clk 0:01:15]}  Rhxe8 {[%clk 0:01:27]} 35. Rxg4+ {[%clk 0:01:16]}  Kf6 {[%clk 0:01:26]} 36. Rge4 {[%clk 0:01:16]}  Rc7 {[%clk 0:01:10]} 37. d5 {[%clk 0:01:15]}  Rxc4 {[%clk 0:01:10]} 38. Rxe6+ {[%clk 0:01:09]}  Rxe6 {[%clk 0:01:09]} 39. Rxe6+ {[%clk 0:01:01]}  Kf5 {[%clk 0:01:09]} 40. Re2 {[%clk 0:00:45]}  Rd4 {[%clk 0:01:08]} 41. h4 {[%clk 0:00:38]}  Rxd5 {[%clk 0:00:53]} 42. Kh3 {[%clk 0:00:36]}  Rd3 {[%clk 0:00:52]} 43. Rf2+ {[%clk 0:00:34]}  Kg6 {[%clk 0:00:51]} 44. Kh2 {[%clk 0:00:31]}  Rd4 {[%clk 0:00:45]} 45. Rc2 {[%clk 0:00:24]}  Kh5 {[%clk 0:00:43]} 46. Rf2 {[%clk 0:00:21]}  Kg4 {[%clk 0:00:40]} 47. Rf4+ {[%clk 0:00:18]}  Rxf4 {[%clk 0:00:39]} 48. gxf4 {[%clk 0:00:18]}  Kxh4 {[%clk 0:00:40]} 49. Kg2 {[%clk 0:00:15]}  Kg4 {[%clk 0:00:40]} 50. Kf2 {[%clk 0:00:15]}  Kxf4 {[%clk 0:00:40]} 51. Ke2 {[%clk 0:00:16]}  Ke4 {[%clk 0:00:40]} 52. Kd2 {[%clk 0:00:16]}  Kd4 {[%clk 0:00:40]} 53. Kc2 {[%clk 0:00:16]}  Kc4 {[%clk 0:00:40]} 54. b3+ {[%clk 0:00:16]}  Kd4 {[%clk 0:00:40]} 55. Kd2 {[%clk 0:00:17]}  b5 {[%clk 0:00:39]} 56. Kc2 {[%clk 0:00:15]}  a5 {[%clk 0:00:38]} 57. Kd2 {[%clk 0:00:13]}  Ke4 {[%clk 0:00:30]} 58. Ke2 {[%clk 0:00:12]}  Kd4 {[%clk 0:00:29]} 59. Kd2 {[%clk 0:00:12]}  Kc5 {[%clk 0:00:16]} 60. Kc3 {[%clk 0:00:12]}  b4+ {[%clk 0:00:16]} 61. axb4+ {[%clk 0:00:12]}  axb4+ {[%clk 0:00:16]} 62. Kc2 {[%clk 0:00:11]}  Kd4 {[%clk 0:00:14]} 63. Kd2 {[%clk 0:00:11]}  Ke4 {[%clk 0:00:15]} 64. Ke2 {[%clk 0:00:12]}  Kd4 {[%clk 0:00:15]} 65. Kd2 {[%clk 0:00:12]}  Kc5 {[%clk 0:00:13]} 66. Ke3 {[%clk 0:00:11]}  Kd5 {[%clk 0:00:14]} 67. Kd3 {[%clk 0:00:11]}  Kc5 {[%clk 0:00:14]} 68. Ke4 {[%clk 0:00:11]}  Kc6 {[%clk 0:00:13]} 69. Kd4 {[%clk 0:00:10]}  Kb5 {[%clk 0:00:13]} 70. Kd5 {[%clk 0:00:11]}  Kb6 {[%clk 0:00:13]} 71. Kc4 {[%clk 0:00:11]}  Ka5 {[%clk 0:00:13]} 72. Kc5 {[%clk 0:00:11]}  Ka6 {[%clk 0:00:14]} 73. Kxb4 {[%clk 0:00:11]}  Kb6 {[%clk 0:00:14]} 74. Kc4 {[%clk 0:00:12]}  Kc6 {[%clk 0:00:14]} 75. Kb4 {[%clk 0:00:12]}  Kb6 {[%clk 0:00:14]} 76. Ka4 {[%clk 0:00:12]}  Ka6 {[%clk 0:00:15]} 77. b4 {[%clk 0:00:11]}  Kb6 {[%clk 0:00:15]} 78. b5 {[%clk 0:00:11]}  Kb7 {[%clk 0:00:15]} 79. Kb4 {[%clk 0:00:12]}  Kb6 {[%clk 0:00:15]} 80. Kc4 {[%clk 0:00:12]}  Kb7 {[%clk 0:00:15]} 81. Kc5 {[%clk 0:00:13]}  Kc7 {[%clk 0:00:16]} 82. Kd5 {[%clk 0:00:13]}  Kb6 {[%clk 0:00:15]} 83. Kc4 {[%clk 0:00:14]}  Kb7 {[%clk 0:00:16]} 84. Kc5 {[%clk 0:00:14]}  Kc7 {[%clk 0:00:16]} 85. b6+ {[%clk 0:00:15]}  Kb7 {[%clk 0:00:16]} 86. Kb5 {[%clk 0:00:16]}  Kb8 {[%clk 0:00:16]} 87. Ka5 {[%clk 0:00:16]}  Kb7 {[%clk 0:00:16]} 88. Kb5 {[%clk 0:00:16]}  Kb8 {[%clk 0:00:17]} 89. Kc5 {[%clk 0:00:17]}  Kb7 {[%clk 0:00:17]} 90. Kb5 {[%clk 0:00:17]} 1/2-1/2


[Site "https://www.chess.com"]

[Event "Titled Tuesday Blitz December 06 Late 2022"]
[White "Souleidis, Georgios"]
[Black "Gutkin, Ilya"]
[WhiteFideId "4206827"]
[BlackFideId "16203470"]
[WhiteElo "2401"]
[BlackElo "2265"]
[Result "1-0"]
[Round "09"]
[TimeControl "180+1"]
[Date "2022.12.07"]
[WhiteClock "0:01:16"]
[BlackClock "0:00:11"]

1. e4 {[%clk 0:03:00]}  e6 {[%clk 0:03:00]} 2. d4 {[%clk 0:03:00]}  d5 {[%clk 0:03:01]} 3. exd5 {[%clk 0:03:00]}  exd5 {[%clk 0:03:02]} 4. Nf3 {[%clk 0:03:00]}  Nc6 {[%clk 0:03:02]} 5. Bb5 {[%clk 0:03:00]}  Bd6 {[%clk 0:03:02]} 6. c4 {[%clk 0:03:01]}  Qe7+ {[%clk 0:02:36]} 7. Be3 {[%clk 0:02:51]}  Bb4+ {[%clk 0:02:31]} 8. Nc3 {[%clk 0:02:45]}  Nf6 {[%clk 0:02:25]} 9. O-O {[%clk 0:02:41]}  Bxc3 {[%clk 0:02:25]} 10. bxc3 {[%clk 0:02:40]}  O-O {[%clk 0:02:23]} 11. Bg5 {[%clk 0:02:29]}  a6 {[%clk 0:02:02]} 12. Re1 {[%clk 0:02:26]}  Be6 {[%clk 0:01:56]} 13. Bxc6 {[%clk 0:02:16]}  bxc6 {[%clk 0:01:57]} 14. c5 {[%clk 0:02:09]}  h6 {[%clk 0:01:55]} 15. Bxf6 {[%clk 0:02:06]}  Qxf6 {[%clk 0:01:56]} 16. Ne5 {[%clk 0:02:07]}  Bf5 {[%clk 0:01:46]} 17. Qa4 {[%clk 0:02:06]}  Rfe8 {[%clk 0:01:28]} 18. Qxc6 {[%clk 0:01:54]}  Rab8 {[%clk 0:01:09]} 19. Qxf6 {[%clk 0:01:43]}  gxf6 {[%clk 0:01:10]} 20. Nc6 {[%clk 0:01:44]}  Rxe1+ {[%clk 0:01:09]} 21. Rxe1 {[%clk 0:01:45]}  Rb1 {[%clk 0:01:05]} 22. Rxb1 {[%clk 0:01:41]}  Bxb1 {[%clk 0:01:06]} 23. a3 {[%clk 0:01:40]}  Kf8 {[%clk 0:00:57]} 24. Nb4 {[%clk 0:01:38]}  a5 {[%clk 0:00:31]} 25. Nxd5 {[%clk 0:01:38]}  c6 {[%clk 0:00:31]} 26. Nxf6 {[%clk 0:01:33]}  Ke7 {[%clk 0:00:32]} 27. Ng4 {[%clk 0:01:31]}  f5 {[%clk 0:00:16]} 28. Ne5 {[%clk 0:01:28]}  Ke6 {[%clk 0:00:14]} 29. c4 {[%clk 0:01:26]}  Be4 {[%clk 0:00:10]} 30. f3 {[%clk 0:01:25]}  Bc2 {[%clk 0:00:10]} 31. Nxc6 {[%clk 0:01:21]}  a4 {[%clk 0:00:11]} 32. Kf2 {[%clk 0:01:18]}  Bb3 {[%clk 0:00:11]} 33. Ne5 {[%clk 0:01:19]}  f4 {[%clk 0:00:11]} 34. g3 {[%clk 0:01:18]}  Kf5 {[%clk 0:00:11]} 35. c6 {[%clk 0:01:16]} 1-0


[Site "https://www.chess.com"]

[Event "Titled Tuesday Blitz December 06 Late 2022"]
[White "Sukandar, Irine Kharisma"]
[Black "Storey, Charles H"]
[WhiteFideId "7101937"]
[BlackFideId "406686"]
[WhiteElo "2301"]
[BlackElo "2251"]
[Result "0-1"]
[Round "09"]
[TimeControl "180+1"]
[Date "2022.12.07"]
[WhiteClock "0:00:14"]
[BlackClock "0:00:14"]

1. e4 {[%clk 0:03:00]}  g6 {[%clk 0:01:06]} 2. d4 {[%clk 0:03:00]}  Bg7 {[%clk 0:01:05]} 3. Nc3 {[%clk 0:03:00]}  c5 {[%clk 0:01:06]} 4. dxc5 {[%clk 0:02:58]}  Bxc3+ {[%clk 0:01:05]} 5. bxc3 {[%clk 0:02:57]}  Nf6 {[%clk 0:01:05]} 6. e5 {[%clk 0:02:53]}  Ne4 {[%clk 0:01:05]} 7. Qd4 {[%clk 0:02:52]}  Qa5 {[%clk 0:01:05]} 8. Bd3 {[%clk 0:02:39]}  Nxc5 {[%clk 0:01:04]} 9. e6 {[%clk 0:02:19]}  f6 {[%clk 0:01:03]} 10. exd7+ {[%clk 0:02:17]}  Bxd7 {[%clk 0:01:03]} 11. Ne2 {[%clk 0:02:12]}  Nc6 {[%clk 0:01:03]} 12. Qe3 {[%clk 0:02:06]}  Ne5 {[%clk 0:00:57]} 13. O-O {[%clk 0:02:04]}  O-O-O {[%clk 0:00:47]} 14. Rb1 {[%clk 0:01:55]}  Ncxd3 {[%clk 0:00:31]} 15. cxd3 {[%clk 0:01:52]}  Bf5 {[%clk 0:00:31]} 16. Rd1 {[%clk 0:01:32]}  Bxd3 {[%clk 0:00:30]} 17. Rb4 {[%clk 0:01:22]}  Bxe2 {[%clk 0:00:30]} 18. Qxe2 {[%clk 0:01:19]}  Rxd1+ {[%clk 0:00:30]} 19. Qxd1 {[%clk 0:01:19]}  Rd8 {[%clk 0:00:30]} 20. Qb3 {[%clk 0:01:17]}  Qd5 {[%clk 0:00:29]} 21. Rd4 {[%clk 0:00:56]}  Qxb3 {[%clk 0:00:28]} 22. axb3 {[%clk 0:00:57]}  Rxd4 {[%clk 0:00:28]} 23. cxd4 {[%clk 0:00:58]}  Nc6 {[%clk 0:00:25]} 24. Bb2 {[%clk 0:00:50]}  Kd7 {[%clk 0:00:22]} 25. Kf1 {[%clk 0:00:50]}  Kd6 {[%clk 0:00:22]} 26. Ke2 {[%clk 0:00:50]}  Kd5 {[%clk 0:00:22]} 27. Ke3 {[%clk 0:00:50]}  b5 {[%clk 0:00:22]} 28. h4 {[%clk 0:00:48]}  a5 {[%clk 0:00:22]} 29. g4 {[%clk 0:00:48]}  a4 {[%clk 0:00:22]} 30. bxa4 {[%clk 0:00:47]}  bxa4 {[%clk 0:00:22]} 31. Ba3 {[%clk 0:00:47]}  e6 {[%clk 0:00:22]} 32. Bb2 {[%clk 0:00:45]}  Na5 {[%clk 0:00:20]} 33. Bc3 {[%clk 0:00:44]}  Nc4+ {[%clk 0:00:20]} 34. Kd3 {[%clk 0:00:44]}  a3 {[%clk 0:00:21]} 35. f4 {[%clk 0:00:42]}  f5 {[%clk 0:00:20]} 36. gxf5 {[%clk 0:00:29]}  gxf5 {[%clk 0:00:19]} 37. h5 {[%clk 0:00:27]}  a2 {[%clk 0:00:16]} 38. h6 {[%clk 0:00:26]}  Nd6 {[%clk 0:00:15]} 39. Ba1 {[%clk 0:00:24]}  Nf7 {[%clk 0:00:15]} 40. Kc2 {[%clk 0:00:24]}  Nxh6 {[%clk 0:00:15]} 41. Kb3 {[%clk 0:00:25]}  Ng4 {[%clk 0:00:15]} 42. Kxa2 {[%clk 0:00:25]}  h5 {[%clk 0:00:15]} 43. Bc3 {[%clk 0:00:19]}  h4 {[%clk 0:00:15]} 44. Be1 {[%clk 0:00:18]}  h3 {[%clk 0:00:16]} 45. Bg3 {[%clk 0:00:19]}  Kxd4 {[%clk 0:00:16]} 46. Kb3 {[%clk 0:00:19]}  Ke4 {[%clk 0:00:16]} 47. Kc2 {[%clk 0:00:19]}  Kf3 {[%clk 0:00:17]} 48. Kd2 {[%clk 0:00:15]}  Kxg3 {[%clk 0:00:17]} 49. Ke2 {[%clk 0:00:14]}  h2 {[%clk 0:00:17]} 50. Kd2 {[%clk 0:00:14]}  h1=Q {[%clk 0:00:17]} 51. Ke2 {[%clk 0:00:14]}  Qe4+ {[%clk 0:00:17]} 52. Kf1 {[%clk 0:00:15]}  Kf3 {[%clk 0:00:16]} 53. Kg1 {[%clk 0:00:15]}  Qe2 {[%clk 0:00:14]} 54. Kh1 {[%clk 0:00:14]}  Qg2# {[%clk 0:00:14]} 0-1


[Site "https://www.chess.com"]

[Event "Titled Tuesday Blitz December 06 Late 2022"]
[White "Van Dael, Siem"]
[Black "Goroshkov, Maksym"]
[WhiteFideId "1049771"]
[BlackFideId "14142716"]
[WhiteElo "2336"]
[BlackElo "2258"]
[Result "0-1"]
[Round "09"]
[TimeControl "180+1"]
[Date "2022.12.06"]
[WhiteClock "0:02:13"]
[BlackClock "0:02:46"]

1. e4 {[%clk 0:03:00]}  e5 {[%clk 0:02:58]} 2. Nf3 {[%clk 0:03:00]}  d6 {[%clk 0:02:58]} 3. d4 {[%clk 0:02:59]}  Bg4 {[%clk 0:02:59]} 4. dxe5 {[%clk 0:02:55]}  Nd7 {[%clk 0:02:59]} 5. exd6 {[%clk 0:02:49]}  Bxd6 {[%clk 0:03:00]} 6. h3 {[%clk 0:02:43]}  Bh5 {[%clk 0:03:00]} 7. Be2 {[%clk 0:02:41]}  Ngf6 {[%clk 0:03:00]} 8. Nc3 {[%clk 0:02:41]}  Qe7 {[%clk 0:02:59]} 9. O-O {[%clk 0:02:41]}  O-O-O {[%clk 0:02:59]} 10. Bg5 {[%clk 0:02:35]}  Bxf3 {[%clk 0:03:00]} 11. Bxf3 {[%clk 0:02:34]}  Qe5 {[%clk 0:02:59]} 12. g3 {[%clk 0:02:24]}  Qxg5 {[%clk 0:02:59]} 13. Nd5 {[%clk 0:02:24]}  Nxd5 {[%clk 0:02:57]} 14. exd5 {[%clk 0:02:25]}  h5 {[%clk 0:02:55]} 15. h4 {[%clk 0:02:25]}  Qf6 {[%clk 0:02:55]} 16. Bxh5 {[%clk 0:02:22]}  g5 {[%clk 0:02:53]} 17. hxg5 {[%clk 0:02:16]}  Qxg5 {[%clk 0:02:54]} 18. Bxf7 {[%clk 0:02:15]}  Bxg3 {[%clk 0:02:51]} 19. Be6 {[%clk 0:02:13]}  Bh2+ {[%clk 0:02:47]} 20. Kh1 {[%clk 0:02:13]}  Bd6+ {[%clk 0:02:46]} 0-1


[Site "https://www.chess.com"]

[Event "Titled Tuesday Blitz December 06 Late 2022"]
[White "Yoo, Christopher Woojin"]
[Black "Da Silva Junior, Sediney Mari"]
[WhiteFideId "30909694"]
[BlackFideId "2132079"]
[WhiteElo "2463"]
[BlackElo "1996"]
[Result "0-1"]
[Round "09"]
[TimeControl "180+1"]
[Date "2022.12.07"]
[WhiteClock "0:00:02"]
[BlackClock "0:00:08"]

1. d4 {[%clk 0:03:00]}  Nf6 {[%clk 0:02:56]} 2. Nf3 {[%clk 0:03:00]}  e6 {[%clk 0:02:56]} 3. Bg5 {[%clk 0:03:00]}  c5 {[%clk 0:02:55]} 4. e3 {[%clk 0:02:59]}  d5 {[%clk 0:02:55]} 5. c4 {[%clk 0:02:47]}  Be7 {[%clk 0:02:49]} 6. Nc3 {[%clk 0:02:44]}  cxd4 {[%clk 0:02:44]} 7. Nxd4 {[%clk 0:02:39]}  O-O {[%clk 0:02:39]} 8. cxd5 {[%clk 0:02:36]}  Nxd5 {[%clk 0:02:35]} 9. Bxe7 {[%clk 0:02:37]}  Qxe7 {[%clk 0:02:36]} 10. Nxd5 {[%clk 0:02:35]}  exd5 {[%clk 0:02:37]} 11. Be2 {[%clk 0:02:35]}  Nc6 {[%clk 0:02:37]} 12. O-O {[%clk 0:02:36]}  Nxd4 {[%clk 0:02:35]} 13. Qxd4 {[%clk 0:02:35]}  Be6 {[%clk 0:02:35]} 14. Rac1 {[%clk 0:02:35]}  a6 {[%clk 0:02:35]} 15. Bf3 {[%clk 0:02:33]}  Qd7 {[%clk 0:02:29]} 16. Rc5 {[%clk 0:02:27]}  Rac8 {[%clk 0:02:29]} 17. Rfc1 {[%clk 0:02:27]}  Rfd8 {[%clk 0:02:27]} 18. h4 {[%clk 0:02:14]}  Rxc5 {[%clk 0:02:22]} 19. Qxc5 {[%clk 0:02:14]}  h6 {[%clk 0:02:15]} 20. b3 {[%clk 0:02:07]}  Qe8 {[%clk 0:01:48]} 21. Qd4 {[%clk 0:01:52]}  Qe7 {[%clk 0:01:40]} 22. h5 {[%clk 0:01:46]}  Qa3 {[%clk 0:01:20]} 23. Rc2 {[%clk 0:01:44]}  Qa5 {[%clk 0:01:16]} 24. b4 {[%clk 0:01:43]}  Qa4 {[%clk 0:01:14]} 25. Rc7 {[%clk 0:01:38]}  b5 {[%clk 0:00:54]} 26. Qd2 {[%clk 0:01:32]}  d4 {[%clk 0:00:41]} 27. exd4 {[%clk 0:01:32]}  Bxa2 {[%clk 0:00:37]} 28. d5 {[%clk 0:01:28]}  a5 {[%clk 0:00:31]} 29. Qf4 {[%clk 0:01:16]}  Bxd5 {[%clk 0:00:21]} 30. Bxd5 {[%clk 0:00:23]}  Qd1+ {[%clk 0:00:19]} 31. Kh2 {[%clk 0:00:23]}  Qxd5 {[%clk 0:00:20]} 32. Rc5 {[%clk 0:00:23]}  Qd6 {[%clk 0:00:03]} 33. Qxd6 {[%clk 0:00:18]}  Rxd6 {[%clk 0:00:04]} 34. bxa5 {[%clk 0:00:18]}  b4 {[%clk 0:00:02]} 35. Rc8+ {[%clk 0:00:15]}  Kh7 {[%clk 0:00:02]} 36. Rc7 {[%clk 0:00:14]}  Rd5 {[%clk 0:00:01]} 37. a6 {[%clk 0:00:14]}  Rxh5+ {[%clk 0:00:01]} 38. Kg3 {[%clk 0:00:14]}  Ra5 {[%clk 0:00:02]} 39. a7 {[%clk 0:00:14]}  b3 {[%clk 0:00:02]} 40. Rxf7 {[%clk 0:00:13]}  b2 {[%clk 0:00:01]} 41. Rb7 {[%clk 0:00:14]}  Ra3+ {[%clk 0:00:02]} 42. Kg4 {[%clk 0:00:13]}  Ra4+ {[%clk 0:00:02]} 43. Kh3 {[%clk 0:00:11]}  Ra3+ {[%clk 0:00:02]} 44. f3 {[%clk 0:00:12]}  Rxa7 {[%clk 0:00:03]} 45. Rxb2 {[%clk 0:00:11]}  Rf7 {[%clk 0:00:04]} 46. Kh4 {[%clk 0:00:11]}  Ra7 {[%clk 0:00:04]} 47. Rb6 {[%clk 0:00:11]}  Rf7 {[%clk 0:00:05]} 48. Kg4 {[%clk 0:00:09]}  Ra7 {[%clk 0:00:05]} 49. f4 {[%clk 0:00:10]}  Ra4 {[%clk 0:00:05]} 50. g3 {[%clk 0:00:08]}  Rc4 {[%clk 0:00:06]} 51. Kh5 {[%clk 0:00:07]}  Rc5+ {[%clk 0:00:06]} 52. Kh4 {[%clk 0:00:06]}  Rc4 {[%clk 0:00:06]} 53. Kh3 {[%clk 0:00:05]}  Rc3 {[%clk 0:00:05]} 54. Kg4 {[%clk 0:00:05]}  Rc4 {[%clk 0:00:05]} 55. Rd6 {[%clk 0:00:04]}  Ra4 {[%clk 0:00:05]} 56. Re6 {[%clk 0:00:05]}  Rb4 {[%clk 0:00:05]} 57. Kf5 {[%clk 0:00:05]}  Rb5+ {[%clk 0:00:05]} 58. Re5 {[%clk 0:00:06]}  Rb6 {[%clk 0:00:05]} 59. g4 {[%clk 0:00:06]}  Rf6+ {[%clk 0:00:06]} 60. Ke4 {[%clk 0:00:07]}  Ra6 {[%clk 0:00:06]} 61. Re7 {[%clk 0:00:02]}  Ra4+ {[%clk 0:00:07]} 62. Ke5 {[%clk 0:00:02]}  Ra5+ {[%clk 0:00:07]} 63. Ke6 {[%clk 0:00:02]}  Ra6+ {[%clk 0:00:08]} 64. Kf5 {[%clk 0:00:02]}  Ra5+ {[%clk 0:00:08]} 65. Ke4 {[%clk 0:00:02]}  Ra4+ {[%clk 0:00:09]} 66. Kf5 {[%clk 0:00:03]}  Ra5+ {[%clk 0:00:09]} 67. Re5 {[%clk 0:00:03]}  Ra6 {[%clk 0:00:09]} 68. Re6 {[%clk 0:00:02]}  Ra5+ {[%clk 0:00:09]} 69. Ke4 {[%clk 0:00:02]}  Ra4+ {[%clk 0:00:09]} 70. Ke5 {[%clk 0:00:03]}  Ra5+ {[%clk 0:00:09]} 71. Ke4 {[%clk 0:00:03]}  Ra4+ {[%clk 0:00:10]} 72. Kf3 {[%clk 0:00:04]}  Ra3+ {[%clk 0:00:10]} 73. Kf2 {[%clk 0:00:04]}  Ra4 {[%clk 0:00:09]} 74. Kg3 {[%clk 0:00:04]}  Ra3+ {[%clk 0:00:10]} 75. Kh4 {[%clk 0:00:05]}  Ra4 {[%clk 0:00:10]} 76. f5 {[%clk 0:00:04]}  Rb4 {[%clk 0:00:10]} 77. Rg6 {[%clk 0:00:03]}  Rb1 {[%clk 0:00:06]} 78. Kg3 {[%clk 0:00:02]}  Rb4 {[%clk 0:00:06]} 79. Kf3 {[%clk 0:00:02]}  Ra4 {[%clk 0:00:06]} 80. Re6 {[%clk 0:00:01]}  Rb4 {[%clk 0:00:06]} 81. Re5 {[%clk 0:00:01]}  Rb3+ {[%clk 0:00:06]} 82. Kf4 {[%clk 0:00:01]}  Rb4+ {[%clk 0:00:06]} 83. Kg3 {[%clk 0:00:01]}  Rb3+ {[%clk 0:00:07]} 84. Kh4 {[%clk 0:00:02]}  Rb4 {[%clk 0:00:07]} 85. Kh5 {[%clk 0:00:02]}  Rb6 {[%clk 0:00:08]} 0-1


[Site "https://www.chess.com"]

[Event "Titled Tuesday Blitz December 06 Late 2022"]
[White "Zhu, Jiner"]
[Black "Korkmaz, Necmettin"]
[WhiteFideId "8608059"]
[BlackFideId "6303285"]
[WhiteElo "2384"]
[BlackElo "2094"]
[Result "1-0"]
[Round "09"]
[TimeControl "180+1"]
[Date "2022.12.07"]
[WhiteClock "0:00:46"]
[BlackClock "0:00:18"]

1. c4 {[%clk 0:03:00]}  e5 {[%clk 0:02:55]} 2. Nc3 {[%clk 0:03:00]}  Nf6 {[%clk 0:02:54]} 3. Nf3 {[%clk 0:03:00]}  Nc6 {[%clk 0:02:50]} 4. e4 {[%clk 0:03:00]}  Bc5 {[%clk 0:02:48]} 5. Nxe5 {[%clk 0:03:00]}  d6 {[%clk 0:02:42]} 6. Nxc6 {[%clk 0:02:55]}  bxc6 {[%clk 0:02:42]} 7. d4 {[%clk 0:02:52]}  Bb4 {[%clk 0:02:42]} 8. Bd3 {[%clk 0:02:52]}  c5 {[%clk 0:02:34]} 9. O-O {[%clk 0:02:37]}  O-O {[%clk 0:02:31]} 10. dxc5 {[%clk 0:02:36]}  Bxc5 {[%clk 0:02:31]} 11. Bg5 {[%clk 0:02:28]}  c6 {[%clk 0:02:29]} 12. h3 {[%clk 0:02:17]}  h6 {[%clk 0:02:24]} 13. Bh4 {[%clk 0:02:16]}  Re8 {[%clk 0:02:24]} 14. Qf3 {[%clk 0:02:16]}  Bd4 {[%clk 0:02:23]} 15. Rac1 {[%clk 0:02:13]}  Be6 {[%clk 0:01:51]} 16. b3 {[%clk 0:02:10]}  Qa5 {[%clk 0:01:42]} 17. Ne2 {[%clk 0:02:06]}  Be5 {[%clk 0:01:37]} 18. Rc2 {[%clk 0:01:59]}  d5 {[%clk 0:01:17]} 19. cxd5 {[%clk 0:01:46]}  cxd5 {[%clk 0:01:17]} 20. Bxf6 {[%clk 0:01:46]}  Bxf6 {[%clk 0:01:10]} 21. exd5 {[%clk 0:01:43]}  Bxd5 {[%clk 0:00:57]} 22. Qf5 {[%clk 0:01:43]}  Rad8 {[%clk 0:00:51]} 23. Nf4 {[%clk 0:01:35]}  Re5 {[%clk 0:00:38]} 24. Qh7+ {[%clk 0:01:34]}  Kf8 {[%clk 0:00:38]} 25. Nxd5 {[%clk 0:01:33]}  Rdxd5 {[%clk 0:00:37]} 26. Rc8+ {[%clk 0:01:00]}  Rd8 {[%clk 0:00:26]} 27. Rxd8+ {[%clk 0:00:57]}  Qxd8 {[%clk 0:00:23]} 28. Bc4 {[%clk 0:00:57]}  Ke7 {[%clk 0:00:22]} 29. a4 {[%clk 0:00:54]}  Qd4 {[%clk 0:00:22]} 30. Qg8 {[%clk 0:00:51]}  Rf5 {[%clk 0:00:18]} 31. Qxf7+ {[%clk 0:00:50]}  Kd6 {[%clk 0:00:18]} 32. Qe6+ {[%clk 0:00:50]}  Kc5 {[%clk 0:00:16]} 33. Qxf5+ {[%clk 0:00:50]}  Kb4 {[%clk 0:00:17]} 34. Qb5+ {[%clk 0:00:50]}  Ka3 {[%clk 0:00:17]} 35. a5 {[%clk 0:00:47]}  Be5 {[%clk 0:00:17]} 36. Qa4+ {[%clk 0:00:47]}  Kb2 {[%clk 0:00:18]} 37. Qa1+ {[%clk 0:00:47]}  Kc2 {[%clk 0:00:18]} 38. Qc1# {[%clk 0:00:46]} 1-0


[Site "https://www.chess.com"]

[Event "Titled Tuesday Blitz December 06 Late 2022"]
[White "Alex_Sahakyan2006"]
[Black "Papp, Levente"]
[BlackFideId "751243"]
[WhiteElo "2667"]
[BlackElo "2380"]
[Result "1-0"]
[Round "10"]
[TimeControl "180+1"]
[Date "2022.12.06"]
[WhiteClock "0:00:20"]
[BlackClock "0:00:12"]

1. c4 {[%clk 0:03:00]}  Nf6 {[%clk 0:02:54]} 2. Nc3 {[%clk 0:03:00]}  g6 {[%clk 0:02:53]} 3. e4 {[%clk 0:02:59]}  d6 {[%clk 0:02:52]} 4. d4 {[%clk 0:02:59]}  Bg7 {[%clk 0:02:52]} 5. Be2 {[%clk 0:02:58]}  O-O {[%clk 0:02:51]} 6. Nf3 {[%clk 0:02:59]}  c5 {[%clk 0:02:50]} 7. O-O {[%clk 0:02:58]}  Nc6 {[%clk 0:02:49]} 8. d5 {[%clk 0:02:58]}  Nb8 {[%clk 0:02:43]} 9. h3 {[%clk 0:02:57]}  a6 {[%clk 0:02:38]} 10. a4 {[%clk 0:02:54]}  Nbd7 {[%clk 0:02:26]} 11. Re1 {[%clk 0:02:44]}  Ne8 {[%clk 0:02:23]} 12. Bf1 {[%clk 0:02:39]}  Rb8 {[%clk 0:02:19]} 13. Bf4 {[%clk 0:02:36]}  Ne5 {[%clk 0:02:13]} 14. Nxe5 {[%clk 0:02:35]}  Bxe5 {[%clk 0:02:13]} 15. Bxe5 {[%clk 0:02:18]}  dxe5 {[%clk 0:02:14]} 16. Qd2 {[%clk 0:02:14]}  Qa5 {[%clk 0:02:05]} 17. f4 {[%clk 0:02:10]}  Qc7 {[%clk 0:01:51]} 18. Rad1 {[%clk 0:01:54]}  Bd7 {[%clk 0:01:34]} 19. Qf2 {[%clk 0:01:52]}  b6 {[%clk 0:01:24]} 20. Qh4 {[%clk 0:01:48]}  f6 {[%clk 0:01:18]} 21. Be2 {[%clk 0:00:58]}  exf4 {[%clk 0:01:08]} 22. e5 {[%clk 0:00:58]}  Qxe5 {[%clk 0:00:40]} 23. Bg4 {[%clk 0:00:56]}  Qd6 {[%clk 0:00:32]} 24. Ne4 {[%clk 0:00:55]}  Qc7 {[%clk 0:00:31]} 25. d6 {[%clk 0:00:34]}  exd6 {[%clk 0:00:26]} 26. Bxd7 {[%clk 0:00:33]}  Qxd7 {[%clk 0:00:26]} 27. Qxf4 {[%clk 0:00:33]}  Qxa4 {[%clk 0:00:21]} 28. Nxd6 {[%clk 0:00:27]}  Ng7 {[%clk 0:00:19]} 29. Qf3 {[%clk 0:00:20]}  Rbd8 {[%clk 0:00:15]} 30. Qd5+ {[%clk 0:00:20]}  Kh8 {[%clk 0:00:12]} 31. Nf7+ {[%clk 0:00:20]} 1-0


[Site "https://www.chess.com"]